[Event "Allsvenskan Div I 3 2021/2022: SS Manhem - SS Allians/Motala SS"]
[Site "Schackcentrum, Vegatan 20, Gothenburg, Sweden"]
[Date "2022.04.10"]
[Round "1.5"]
[White "Kristoffersson, Ivar"]
[Black "Berggren Torell, Harald"]
[Result "0-1"]
[TimeControl "90 minutes for 40 moves + 30 minutes for the rest of the game + 30 seconds per move from move one."]
[WhiteFideId "1746782"]
[BlackFideId "1714031"]
[WhiteElo "1888"]
[BlackElo "2092"]

1. e4 {[%clk 01:30:57]} {[%emt 00:00:02]} g6 {[%clk 01:25:31]} {[%emt
00:05:24]} 2. d4 {[%clk 01:30:25]} {[%emt 00:01:07]} d6 {[%clk 01:25:49]}
{[%emt 00:00:12]} 3. Bc4 {[%clk 01:24:59]} {[%emt 00:05:55]} Bg7 {[%clk
01:18:56]} {[%emt 00:07:25]} 4. Nf3 {[%clk 01:23:55]} {[%emt 00:01:33]} c6
{[%clk 01:12:36]} {[%emt 00:06:50]} 5. a4 {[%clk 01:20:28]} {[%emt 00:03:57]}
Nf6 {[%clk 01:09:14]} {[%emt 00:03:53]} 6. Nc3 {[%clk 01:20:16]} {[%emt
00:00:41]} d5 {[%clk 01:01:12]} {[%emt 00:08:32]} 7. exd5 {[%clk 01:19:39]}
{[%emt 00:01:07]} cxd5 {[%clk 00:57:25]} {[%emt 00:04:17]} 8. Bb5+ {[%clk
01:19:09]} {[%emt 00:01:00]} Bd7 {[%clk 00:55:10]} {[%emt 00:02:46]} 9. Bxd7+
{[%clk 01:18:28]} {[%emt 00:01:10]} Nbxd7 {[%clk 00:53:26]} {[%emt 00:02:15]}
10. O-O {[%clk 01:18:40]} {[%emt 00:00:17]} O-O {[%clk 00:50:56]} {[%emt
00:03:01]} 11. a5 {[%clk 01:18:39]} {[%emt 00:00:31]} a6 {[%clk 00:47:07]}
{[%emt 00:04:19]} 12. Bf4 {[%clk 01:17:38]} {[%emt 00:01:30]} e6 {[%clk
00:40:08]} {[%emt 00:07:30]} 13. Ne2 {[%clk 01:14:47]} {[%emt 00:03:20]} Rc8
{[%clk 00:34:19]} {[%emt 00:06:19]} 14. c3 {[%clk 01:11:51]} {[%emt 00:03:27]}
Nb8 {[%clk 00:32:04]} {[%emt 00:02:45]} 15. Nc1 {[%clk 01:07:34]} {[%emt
00:04:46]} Nc6 {[%clk 00:31:50]} {[%emt 00:00:44]} 16. Nb3 {[%clk 01:06:24]}
{[%emt 00:01:40]} Nh5 {[%clk 00:23:32]} {[%emt 00:08:49]} 17. Bg3 {[%clk
01:02:20]} {[%emt 00:04:33]} Bf6 {[%clk 00:20:14]} {[%emt 00:03:48]} 18. Ne5
{[%clk 00:59:31]} {[%emt 00:03:19]} Nxe5 {[%clk 00:17:25]} {[%emt 00:03:19]} 19.
Bxe5 {[%clk 00:59:43]} {[%emt 00:00:18]} Bxe5 {[%clk 00:17:54]} {[%emt
00:00:02]} 20. dxe5 {[%clk 01:00:11]} {[%emt 00:00:02]} Qg5 {[%clk 00:15:38]}
{[%emt 00:02:45]} 21. Re1 {[%clk 00:54:26]} {[%emt 00:06:15]} Ng7 {[%clk
00:13:37]} {[%emt 00:02:31]} 22. Nd4 {[%clk 00:53:12]} {[%emt 00:01:44]} Nf5
{[%clk 00:13:30]} {[%emt 00:00:36]} 23. Nf3 {[%clk 00:50:55]} {[%emt 00:02:47]}
Qh6 {[%clk 00:12:57]} {[%emt 00:01:04]} 24. Ra4 {[%clk 00:49:11]} {[%emt
00:02:14]} Rc5 {[%clk 00:11:11]} {[%emt 00:02:16]} 25. Nd4 {[%clk 00:46:03]}
{[%emt 00:03:37]} Nxd4 {[%clk 00:10:32]} {[%emt 00:01:10]} 26. Qxd4 {[%clk
00:46:21]} {[%emt 00:00:11]} Rfc8 {[%clk 00:10:58]} {[%emt 00:00:05]} 27. Rb4
{[%clk 00:42:15]} {[%emt 00:04:36]} Rxa5 {[%clk 00:07:20]} {[%emt 00:04:08]} 28.
Rxb7 {[%clk 00:40:05]} {[%emt 00:02:40]} Qf8 {[%clk 00:07:44]} {[%emt
00:00:06]} 29. Qb4 {[%clk 00:35:36]} {[%emt 00:04:58]} Qxb4 {[%clk 00:07:34]}
{[%emt 00:00:41]} 30. Rxb4 {[%clk 00:35:56]} {[%emt 00:00:10]} Rb5 {[%clk
00:05:58]} {[%emt 00:02:06]} 31. Rxb5 {[%clk 00:34:27]} {[%emt 00:01:50]} axb5
{[%clk 00:06:27]} {[%emt 00:00:10]} 32. Ra1 {[%clk 00:34:30]} {[%emt 00:00:26]}
b4 {[%clk 00:05:32]} {[%emt 00:01:27]} 33. Rc1 {[%clk 00:30:41]} {[%emt
00:04:18]} Rc4 {[%clk 00:06:01]} {[%emt 00:00:02]} 34. f3 {[%clk 00:30:56]}
{[%emt 00:00:15]} d4 {[%clk 00:06:22]} {[%emt 00:00:09]} 35. Kf2 {[%clk
00:30:51]} {[%emt 00:00:34]} dxc3 {[%clk 00:06:14]} {[%emt 00:00:38]} 36. bxc3
{[%clk 00:30:38]} {[%emt 00:00:43]} bxc3 {[%clk 00:06:23]} {[%emt 00:00:21]} 37.
Ke3 {[%clk 00:29:47]} {[%emt 00:01:20]} g5 {[%clk 00:05:03]} {[%emt 00:01:51]}
38. g3 {[%clk 00:23:50]} {[%emt 00:06:27]} c2 {[%clk 00:02:01]} {[%emt
00:03:32]} 39. Kd3 {[%clk 00:23:32]} {[%emt 00:00:48]} Rc5 {[%clk 00:02:22]}
{[%emt 00:00:09]} 40. f4 {[%clk 00:21:31]} {[%emt 00:02:30]} Kg7 {[%clk
00:01:40]} {[%emt 00:01:13]} 41. Rxc2 {[%clk 00:19:18]} {[%emt 00:02:44]} Rxc2
{[%clk 00:01:56]} {[%emt 00:00:13]} 42. Kxc2 {[%clk 00:19:39]} {[%emt
00:00:08]} gxf4 {[%clk 00:30:02]} {[%emt 00:02:25]} 43. gxf4 {[%clk 00:46:51]}
{[%emt 00:03:18]} Kg6 {[%clk 00:30:22]} {[%emt 00:00:09]} 44. Kd3 {[%clk
00:47:11]} {[%emt 00:00:10]} Kf5 {[%clk 00:30:48]} {[%emt 00:00:05]} 45. Ke3
{[%clk 00:47:32]} {[%emt 00:00:09]} Kg4 {[%clk 00:31:11]} {[%emt 00:00:07]} 46.
Ke4 {[%clk 00:44:01]} {[%emt 00:04:01]} h5 {[%clk 00:25:47]} {[%emt 00:05:54]}
47. Ke3 {[%clk 00:41:15]} {[%emt 00:03:16]} h4 {[%clk 00:25:25]} {[%emt
00:00:52]} 48. Ke4 {[%clk 00:41:17]} {[%emt 00:00:28]} Kh3 {[%clk 00:23:12]}
{[%emt 00:02:43]} 49. Kf3 {[%clk 00:40:23]} {[%emt 00:01:25]} Kxh2 {[%clk
00:23:27]} {[%emt 00:00:14]} 50. Kf2 {[%clk 00:40:44]} {[%emt 00:00:09]} h3
{[%clk 00:23:40]} {[%emt 00:00:17]} 0-1

[Event "Allsvenskan Div I 3 2021/2022: SS Manhem - SS Allians/Motala SS"]
[Site "Schackcentrum, Vegatan 20, Gothenburg, Sweden"]
[Date "2022.04.10"]
[Round "1.6"]
[White "Bengtsson, Jonas"]
[Black "Haraldsson, Leif"]
[Result "1-0"]
[TimeControl "90 minutes for 40 moves + 30 minutes for the rest of the game + 30 seconds per move from move one."]
[WhiteFideId "1715135"]
[BlackFideId "1710648"]
[WhiteElo "2092"]
[BlackElo "1895"]

1. d4 {[%clk 01:30:56]} {[%emt 00:00:03]} d6 {[%clk 01:30:44]} {[%emt
00:00:17]} 2. Nf3 {[%clk 01:31:19]} {[%emt 00:00:07]} Nd7 {[%clk 01:31:05]}
{[%emt 00:00:09]} 3. c4 {[%clk 01:31:42]} {[%emt 00:00:06]} c6 {[%clk
01:29:58]} {[%emt 00:01:38]} 4. Nc3 {[%clk 01:32:03]} {[%emt 00:00:07]} e5
{[%clk 01:30:18]} {[%emt 00:00:12]} 5. e4 {[%clk 01:32:26]} {[%emt 00:00:06]}
h6 {[%clk 01:30:25]} {[%emt 00:00:24]} 6. Be2 {[%clk 01:32:37]} {[%emt
00:00:18]} Qf6 {[%clk 01:30:17]} {[%emt 00:00:39]} 7. O-O {[%clk 01:32:21]}
{[%emt 00:00:46]} Ne7 {[%clk 01:30:08]} {[%emt 00:00:38]} 8. Re1 {[%clk
01:29:42]} {[%emt 00:03:09]} g5 {[%clk 01:30:23]} {[%emt 00:00:16]} 9. d5
{[%clk 01:29:22]} {[%emt 00:00:50]} Ng6 {[%clk 01:29:31]} {[%emt 00:01:22]} 10.
Be3 {[%clk 01:28:43]} {[%emt 00:01:09]} c5 {[%clk 01:26:42]} {[%emt 00:03:19]}
11. a3 {[%clk 01:26:25]} {[%emt 00:02:47]} Be7 {[%clk 01:14:18]} {[%emt
00:12:54]} 12. b4 {[%clk 01:24:28]} {[%emt 00:02:27]} O-O {[%clk 01:08:48]}
{[%emt 00:06:01]} 13. Rb1 {[%clk 01:15:23]} {[%emt 00:09:34]} Nf4 {[%clk
01:06:56]} {[%emt 00:02:22]} 14. Bf1 {[%clk 01:15:27]} {[%emt 00:00:26]} Qg6
{[%clk 01:05:26]} {[%emt 00:02:00]} 15. bxc5 {[%clk 00:55:07]} {[%emt
00:20:50]} Nxc5 {[%clk 01:02:22]} {[%emt 00:03:34]} 16. Bxc5 {[%clk 00:55:30]}
{[%emt 00:00:07]} dxc5 {[%clk 01:02:46]} {[%emt 00:00:08]} 17. g3 {[%clk
00:53:18]} {[%emt 00:02:42]} Kh7 {[%clk 00:53:02]} {[%emt 00:10:13]} 18. gxf4
{[%clk 00:38:29]} {[%emt 00:15:19]} gxf4+ {[%clk 00:53:22]} {[%emt 00:00:09]}
19. Kh1 {[%clk 00:38:51]} {[%emt 00:00:09]} Rg8 {[%clk 00:53:42]} {[%emt
00:00:10]} 20. Qd3 {[%clk 00:34:40]} {[%emt 00:04:41]} b6 {[%clk 00:51:15]}
{[%emt 00:02:57]} 21. Ne2 {[%clk 00:34:44]} {[%emt 00:00:25]} Bf6 {[%clk
00:45:33]} {[%emt 00:06:12]} 22. h3 {[%clk 00:23:48]} {[%emt 00:11:26]} Ba6
{[%clk 00:42:10]} {[%emt 00:03:54]} 23. Nxf4 {[%clk 00:18:25]} {[%emt
00:05:53]} exf4 {[%clk 00:32:50]} {[%emt 00:09:50]} 24. e5 {[%clk 00:18:48]}
{[%emt 00:00:07]} Be7 {[%clk 00:21:31]} {[%emt 00:11:49]} 25. Qxg6+ {[%clk
00:15:36]} {[%emt 00:03:41]} Kxg6 {[%clk 00:21:05]} {[%emt 00:00:57]} 26. Bd3+
{[%clk 00:15:54]} {[%emt 00:00:11]} Kg7 {[%clk 00:20:27]} {[%emt 00:01:08]} 27.
Re4 {[%clk 00:11:22]} {[%emt 00:05:03]} Rae8 {[%clk 00:20:30]} {[%emt
00:00:27]} 28. Rxf4 {[%clk 00:11:38]} {[%emt 00:00:14]} f6 {[%clk 00:19:26]}
{[%emt 00:01:34]} 29. exf6+ {[%clk 00:10:47]} {[%emt 00:01:21]} Bxf6 {[%clk
00:19:51]} {[%emt 00:00:05]} 30. Rg1+ {[%clk 00:11:04]} {[%emt 00:00:13]} Kf7
{[%clk 00:19:48]} {[%emt 00:00:33]} 31. Rxg8 {[%clk 00:10:37]} {[%emt
00:00:56]} Rxg8 {[%clk 00:20:16]} {[%emt 00:00:03]} 32. Ne5+ {[%clk 00:09:17]}
{[%emt 00:01:51]} Ke7 {[%clk 00:20:02]} {[%emt 00:00:43]} 33. Nc6+ {[%clk
00:09:32]} {[%emt 00:00:14]} Kf7 {[%clk 00:20:27]} {[%emt 00:00:06]} 34. Nxa7
{[%clk 00:08:29]} {[%emt 00:01:32]} Rg5 {[%clk 00:20:25]} {[%emt 00:00:33]} 35.
Nc6 {[%clk 00:07:00]} {[%emt 00:01:57]} Kg7 {[%clk 00:20:41]} {[%emt 00:00:16]}
36. Na7 {[%clk 00:05:09]} {[%emt 00:02:21]} Bb2 {[%clk 00:20:22]} {[%emt
00:00:49]} 37. a4 {[%clk 00:05:25]} {[%emt 00:00:14]} Bd4 {[%clk 00:20:19]}
{[%emt 00:00:33]} 38. Nb5 {[%clk 00:05:08]} {[%emt 00:00:46]} Bf6 {[%clk
00:19:08]} {[%emt 00:01:40]} 39. Nc7 {[%clk 00:05:04]} {[%emt 00:00:34]} Be5
{[%clk 00:18:37]} {[%emt 00:01:02]} 40. Ne6+ {[%clk 00:05:23]} {[%emt
00:00:11]} Kg8 {[%clk 00:18:40]} {[%emt 00:00:26]} 41. Rf8# {[%clk 00:05:43]}
{[%emt 00:00:09]} 1-0

[Event "Allsvenskan Div I 3 2021/2022: SS Manhem - SS Allians/Motala SS"]
[Site "Schackcentrum, Vegatan 20, Gothenburg, Sweden"]
[Date "2022.04.10"]
[Round "1.7"]
[White "Holmgren, Peter 1965"]
[Black "Lindholm, Gustav"]
[Result "0-1"]
[TimeControl "90 minutes for 40 moves + 30 minutes for the rest of the game + 30 seconds per move from move one."]
[WhiteFideId "1713906"]
[BlackFideId "1736515"]
[WhiteElo "1871"]
[BlackElo "1971"]

1. d4 {[%clk 01:30:56]} {[%emt 00:00:02]} d5 {[%clk 01:30:56]} {[%emt
00:00:05]} 2. Nf3 {[%clk 01:31:10]} {[%emt 00:00:16]} Nf6 {[%clk 01:31:20]}
{[%emt 00:00:06]} 3. Bf4 {[%clk 01:30:33]} {[%emt 00:01:07]} c5 {[%clk
01:31:45]} {[%emt 00:00:05]} 4. c3 {[%clk 01:28:52]} {[%emt 00:02:12]} Nc6
{[%clk 01:32:10]} {[%emt 00:00:05]} 5. e3 {[%clk 01:29:06]} {[%emt 00:00:16]}
Qb6 {[%clk 01:32:07]} {[%emt 00:00:32]} 6. Qb3 {[%clk 01:28:29]} {[%emt
00:01:06]} c4 {[%clk 01:32:29]} {[%emt 00:00:09]} 7. Qxb6 {[%clk 01:09:43]}
{[%emt 00:19:17]} axb6 {[%clk 01:32:54]} {[%emt 00:00:05]} 8. Be2 {[%clk
01:08:09]} {[%emt 00:02:03]} Bf5 {[%clk 01:32:58]} {[%emt 00:00:26]} 9. O-O
{[%clk 01:06:13]} {[%emt 00:02:27]} h6 {[%clk 01:30:55]} {[%emt 00:02:31]} 10.
Nbd2 {[%clk 01:02:12]} {[%emt 00:04:33]} e6 {[%clk 01:26:42]} {[%emt 00:04:42]}
11. Ne5 {[%clk 00:56:47]} {[%emt 00:05:55]} b5 {[%clk 01:16:27]} {[%emt
00:10:43]} 12. Nxc6 {[%clk 00:55:26]} {[%emt 00:01:53]} bxc6 {[%clk 01:15:40]}
{[%emt 00:01:18]} 13. a3 {[%clk 00:55:27]} {[%emt 00:00:29]} Be7 {[%clk
01:07:47]} {[%emt 00:08:18]} 14. h3 {[%clk 00:54:14]} {[%emt 00:01:48]} g5
{[%clk 01:03:22]} {[%emt 00:04:53]} 15. Be5 {[%clk 00:54:17]} {[%emt 00:00:28]}
Rg8 {[%clk 01:03:32]} {[%emt 00:00:20]} 16. g4 {[%clk 00:52:46]} {[%emt
00:02:00]} Bh7 {[%clk 01:02:16]} {[%emt 00:01:46]} 17. f3 {[%clk 00:39:51]}
{[%emt 00:13:25]} Nd7 {[%clk 00:52:36]} {[%emt 00:10:10]} 18. Bg3 {[%clk
00:39:09]} {[%emt 00:01:14]} f5 {[%clk 00:51:27]} {[%emt 00:01:38]} 19. Kh2
{[%clk 00:32:18]} {[%emt 00:07:21]} c5 {[%clk 00:48:13]} {[%emt 00:03:45]} 20.
Rfc1 {[%clk 00:28:18]} {[%emt 00:04:29]} cxd4 {[%clk 00:42:34]} {[%emt
00:06:09]} 21. exd4 {[%clk 00:24:39]} {[%emt 00:04:10]} f4 {[%clk 00:40:51]}
{[%emt 00:02:11]} 22. Be1 {[%clk 00:23:29]} {[%emt 00:01:41]} e5 {[%clk
00:33:19]} {[%emt 00:08:02]} 23. dxe5 {[%clk 00:21:01]} {[%emt 00:02:58]} Nxe5
{[%clk 00:33:26]} {[%emt 00:00:23]} 24. Bf2 {[%clk 00:21:16]} {[%emt 00:00:15]}
Kf7 {[%clk 00:29:28]} {[%emt 00:04:28]} 25. Bd4 {[%clk 00:20:52]} {[%emt
00:00:54]} Nd7 {[%clk 00:28:08]} {[%emt 00:01:49]} 26. Re1 {[%clk 00:12:05]}
{[%emt 00:09:18]} Rge8 {[%clk 00:19:51]} {[%emt 00:08:46]} 27. Kg2 {[%clk
00:11:09]} {[%emt 00:01:28]} Nc5 {[%clk 00:18:48]} {[%emt 00:01:32]} 28. Bxc5
{[%clk 00:09:59]} {[%emt 00:01:40]} Bxc5 {[%clk 00:19:13]} {[%emt 00:00:06]} 29.
b4 {[%clk 00:05:03]} {[%emt 00:05:26]} Be3 {[%clk 00:17:49]} {[%emt 00:01:53]}
30. Nf1 {[%clk 00:03:37]} {[%emt 00:01:57]} Bb6 {[%clk 00:16:20]} {[%emt
00:01:58]} 31. Nd2 {[%clk 00:03:23]} {[%emt 00:00:45]} Re3 {[%clk 00:15:27]}
{[%emt 00:01:22]} 32. Nf1 {[%clk 00:01:35]} {[%emt 00:02:19]} Rxc3 {[%clk
00:15:13]} {[%emt 00:00:43]} 33. Rad1 {[%clk 00:01:48]} {[%emt 00:00:17]} d4
{[%clk 00:15:16]} {[%emt 00:00:27]} 34. Nd2 {[%clk 00:01:53]} {[%emt 00:00:26]}
d3 {[%clk 00:15:22]} {[%emt 00:00:23]} 35. Nb1 {[%clk 00:02:02]} {[%emt
00:00:21]} Rc2 {[%clk 00:15:37]} {[%emt 00:00:15]} 0-1